[Event "*** Titled Tuesday Blitz"]
[Site "Chess.com"]
[Date "2021.03.09"]
[Round "2"]
[White "Fraler15"]
[Black "woodhy"]
[Result "1-0"]
[WhiteElo "2278"]
[BlackElo "2460"]
[TimeControl "180+1"]
[EndTime "10:20:13 PST"]
[Termination "Fraler15 won on time"]

1. e4 {[%clk 0:03:00.9]} 1... e6 {[%clk 0:03:00.9]} 2. d4 {[%clk 0:03:00.2]}
2... d5 {[%clk 0:03:01.8]} 3. e5 {[%clk 0:03:00.2]} 3... c5 {[%clk 0:03:01.1]}
4. c3 {[%clk 0:03:00.8]} 4... Nc6 {[%clk 0:03:01.2]} 5. Nf3 {[%clk 0:03:01.3]}
5... Nge7 {[%clk 0:03:01.2]} 6. Bd3 {[%clk 0:02:55.5]} 6... Bd7 {[%clk
0:02:59.8]} 7. Na3 {[%clk 0:02:50.9]} 7... Qb6 {[%clk 0:02:57.9]} 8. Nc2 {[%clk
0:02:46.9]} 8... Nf5 {[%clk 0:02:51.8]} 9. O-O {[%clk 0:02:40.1]} 9... cxd4
{[%clk 0:02:49.3]} 10. Bxf5 {[%clk 0:02:39.8]} 10... exf5 {[%clk 0:02:17.9]} 11.
Ncxd4 {[%clk 0:02:33.4]} 11... Be6 {[%clk 0:02:16.1]} 12. Be3 {[%clk 0:02:25.5]}
12... Qd8 {[%clk 0:02:06.1]} 13. Ng5 {[%clk 0:01:40.9]} 13... Nxd4 {[%clk
0:01:50.3]} 14. Qxd4 {[%clk 0:01:39.2]} 14... Be7 {[%clk 0:01:49.4]} 15. Nf3
{[%clk 0:01:32.9]} 15... O-O {[%clk 0:01:45.2]} 16. Rad1 {[%clk 0:01:29.7]}
16... Qa5 {[%clk 0:01:41.3]} 17. a3 {[%clk 0:01:01.5]} 17... Rfc8 {[%clk
0:01:34.4]} 18. Qd2 {[%clk 0:00:58.5]} 18... Rc4 {[%clk 0:01:26.1]} 19. Bg5
{[%clk 0:00:48.2]} 19... Bf8 {[%clk 0:01:14.9]} 20. Nd4 {[%clk 0:00:44.1]} 20...
Qc7 {[%clk 0:01:09.3]} 21. Bf4 {[%clk 0:00:40.8]} 21... Rb8 {[%clk 0:01:05]} 22.
Nb5 {[%clk 0:00:38.2]} 22... Qb6 {[%clk 0:01:03.5]} 23. Nd6 {[%clk 0:00:36.9]}
23... Rc6 {[%clk 0:00:50.5]} 24. Rfe1 {[%clk 0:00:20.3]} 24... Rd8 {[%clk
0:00:46.2]} 25. Qc2 {[%clk 0:00:19.2]} 25... Rcxd6 {[%clk 0:00:19.5]} 26. exd6
{[%clk 0:00:20.1]} 26... Rxd6 {[%clk 0:00:17]} 27. Bxd6 {[%clk 0:00:19.6]} 27...
Bxd6 {[%clk 0:00:17.9]} 28. g3 {[%clk 0:00:19.5]} 28... h6 {[%clk 0:00:17.2]}
29. b4 {[%clk 0:00:19.2]} 29... Be7 {[%clk 0:00:16.8]} 30. Qe2 {[%clk 0:00:16]}
30... Bf6 {[%clk 0:00:16.5]} 31. Qe3 {[%clk 0:00:15.5]} 31... Qa6 {[%clk
0:00:16.7]} 32. Ra1 {[%clk 0:00:10.8]} 32... b6 {[%clk 0:00:16.9]} 33. Qe2
{[%clk 0:00:10.2]} 33... Qxe2 {[%clk 0:00:15.6]} 34. Rxe2 {[%clk 0:00:11.1]}
34... Bxc3 {[%clk 0:00:16]} 35. Rc1 {[%clk 0:00:11]} 35... d4 {[%clk 0:00:16.9]}
36. Rec2 {[%clk 0:00:08.2]} 36... Kf8 {[%clk 0:00:13.1]} 37. Rxc3 {[%clk
0:00:07.8]} 37... dxc3 {[%clk 0:00:14]} 38. Rxc3 {[%clk 0:00:08.6]} 38... a5
{[%clk 0:00:13.2]} 39. Kf1 {[%clk 0:00:08.9]} 39... axb4 {[%clk 0:00:13.1]} 40.
axb4 {[%clk 0:00:09.8]} 40... b5 {[%clk 0:00:14]} 41. Rc5 {[%clk 0:00:08.9]}
41... Ke7 {[%clk 0:00:14.9]} 42. Kg2 {[%clk 0:00:09.5]} 42... Bd7 {[%clk
0:00:14.1]} 43. Kf3 {[%clk 0:00:08.9]} 43... Kd6 {[%clk 0:00:14.2]} 44. Ke3
{[%clk 0:00:09.5]} 44... g5 {[%clk 0:00:14.2]} 45. f4 {[%clk 0:00:09.4]} 45...
f6 {[%clk 0:00:13.7]} 46. Kd4 {[%clk 0:00:08.7]} 46... Ke6 {[%clk 0:00:12.4]}
47. Rc7 {[%clk 0:00:07.8]} 47... Kd6 {[%clk 0:00:12.3]} 48. Rb7 {[%clk
0:00:07.3]} 48... Bc6 {[%clk 0:00:12.2]} 49. Rb6 {[%clk 0:00:07.3]} 49... Kc7
{[%clk 0:00:11.8]} 50. Kc5 {[%clk 0:00:07]} 50... Bd7 {[%clk 0:00:11.1]} 51.
Rxf6 {[%clk 0:00:06.7]} 51... gxf4 {[%clk 0:00:12]} 52. gxf4 {[%clk 0:00:06.6]}
52... h5 {[%clk 0:00:12.2]} 53. Rh6 {[%clk 0:00:06.4]} 53... Be8 {[%clk
0:00:12.6]} 54. Rh8 {[%clk 0:00:05.5]} 54... Bg6 {[%clk 0:00:10.3]} 55. Kxb5
{[%clk 0:00:04.2]} 55... Kd7 {[%clk 0:00:09.1]} 56. Kc5 {[%clk 0:00:04.8]} 56...
Ke7 {[%clk 0:00:08.9]} 57. b5 {[%clk 0:00:05.5]} 57... Be8 {[%clk 0:00:07.8]}
58. b6 {[%clk 0:00:05.1]} 58... Bc6 {[%clk 0:00:06.1]} 59. Kxc6 {[%clk
0:00:04.8]} 59... h4 {[%clk 0:00:07]} 60. b7 {[%clk 0:00:05.4]} 60... h3 {[%clk
0:00:07.9]} 61. b8=Q {[%clk 0:00:06.2]} 1-0

[Event "*** Titled Tuesday Blitz"]
[Site "Chess.com"]
[Date "2021.03.09"]
[Round "2"]
[White "Kobalia"]
[Black "FMJoseHerrera"]
[Result "0-1"]
[WhiteElo "2706"]
[BlackElo "2514"]
[TimeControl "180+1"]
[EndTime "10:20:14 PST"]
[Termination "FMJoseHerrera won on time"]

1. e4 {[%clk 0:03:00.9]} 1... c5 {[%clk 0:02:56.7]} 2. Nf3 {[%clk 0:03:00.5]}
2... e6 {[%clk 0:02:56.3]} 3. g3 {[%clk 0:03:00.2]} 3... b6 {[%clk 0:02:56.1]}
4. Bg2 {[%clk 0:02:59.5]} 4... Bb7 {[%clk 0:02:56.4]} 5. Nc3 {[%clk 0:02:59.3]}
5... a6 {[%clk 0:02:56.1]} 6. O-O {[%clk 0:02:58.8]} 6... Qc7 {[%clk 0:02:54.7]}
7. d4 {[%clk 0:02:58.5]} 7... cxd4 {[%clk 0:02:54.3]} 8. Nxd4 {[%clk 0:02:58.6]}
8... d6 {[%clk 0:02:54.2]} 9. f4 {[%clk 0:02:55.9]} 9... Nd7 {[%clk 0:02:53.2]}
10. f5 {[%clk 0:02:55.5]} 10... e5 {[%clk 0:02:52.8]} 11. Nde2 {[%clk
0:02:55.3]} 11... Ngf6 {[%clk 0:02:52.5]} 12. h3 {[%clk 0:02:51.6]} 12... h5
{[%clk 0:02:51.6]} 13. Bg5 {[%clk 0:02:44.6]} 13... Be7 {[%clk 0:02:50.5]} 14.
Qd2 {[%clk 0:02:43.5]} 14... Rc8 {[%clk 0:02:48.7]} 15. Rad1 {[%clk 0:02:40.7]}
15... b5 {[%clk 0:02:47.7]} 16. a3 {[%clk 0:02:40.2]} 16... Nb6 {[%clk
0:02:43.9]} 17. Qc1 {[%clk 0:02:37]} 17... Nc4 {[%clk 0:02:38.4]} 18. Kh1 {[%clk
0:02:32]} 18... Qb6 {[%clk 0:02:22.9]} 19. Rd3 {[%clk 0:02:26.5]} 19... Qa7
{[%clk 0:02:09.6]} 20. Bxf6 {[%clk 0:02:25.3]} 20... gxf6 {[%clk 0:02:09.5]} 21.
Nd5 {[%clk 0:02:25]} 21... Bxd5 {[%clk 0:02:09.4]} 22. exd5 {[%clk 0:02:24.9]}
22... Rg8 {[%clk 0:01:54.6]} 23. Nc3 {[%clk 0:02:23.3]} 23... Kd7 {[%clk
0:01:43.7]} 24. Ne4 {[%clk 0:02:22.6]} 24... a5 {[%clk 0:01:37.4]} 25. Qh6
{[%clk 0:02:07.8]} 25... Ke8 {[%clk 0:01:09.2]} 26. Rc3 {[%clk 0:02:01.9]} 26...
b4 {[%clk 0:01:08.4]} 27. axb4 {[%clk 0:01:55.6]} 27... axb4 {[%clk 0:01:09.3]}
28. Rb3 {[%clk 0:01:55.4]} 28... Qd4 {[%clk 0:01:06.3]} 29. Rxb4 {[%clk
0:01:48.3]} 29... Qe3 {[%clk 0:01:05.1]} 30. Qh7 {[%clk 0:01:30.3]} 30... Rxg3
{[%clk 0:01:02.1]} 31. Nxg3 {[%clk 0:01:20.7]} 31... Qxg3 {[%clk 0:01:03]} 32.
Qh8+ {[%clk 0:01:15.7]} 32... Bf8 {[%clk 0:00:50.8]} 33. Rb3 {[%clk 0:00:13.1]}
33... Ne3 {[%clk 0:00:48.3]} 34. Rxe3 {[%clk 0:00:12.6]} 34... Qxe3 {[%clk
0:00:49.2]} 35. c3 {[%clk 0:00:13.2]} 35... Qg5 {[%clk 0:00:48.6]} 36. Ra1
{[%clk 0:00:12.2]} 36... Qxf5 {[%clk 0:00:35.7]} 37. Rf1 {[%clk 0:00:11]} 37...
Qg5 {[%clk 0:00:31.9]} 38. Rxf6 {[%clk 0:00:10.1]} 38... Rb8 {[%clk 0:00:25.5]}
39. Rf2 {[%clk 0:00:09.6]} 39... Rxb2 {[%clk 0:00:19]} 40. Rxb2 {[%clk
0:00:07.9]} 40... Qc1+ {[%clk 0:00:19.7]} 41. Kh2 {[%clk 0:00:08.1]} 41... Qxb2
{[%clk 0:00:20.6]} 42. Qxh5 {[%clk 0:00:07.8]} 42... Qxc3 {[%clk 0:00:20.4]} 43.
Qf3 {[%clk 0:00:07.9]} 43... Qd2 {[%clk 0:00:20.5]} 44. Qe4 {[%clk 0:00:07.7]}
44... Bh6 {[%clk 0:00:20.5]} 45. h4 {[%clk 0:00:06.3]} 45... Bf4+ {[%clk
0:00:20.6]} 46. Kh3 {[%clk 0:00:06.7]} 46... Qf2 {[%clk 0:00:20.5]} 47. Qf3
{[%clk 0:00:06.1]} 47... Qg1 {[%clk 0:00:20.6]} 48. Qe4 {[%clk 0:00:04.3]} 48...
Qh2+ {[%clk 0:00:20.1]} 49. Kg4 {[%clk 0:00:04.5]} 49... Qg3+ {[%clk 0:00:20.2]}
50. Kh5 {[%clk 0:00:04.8]} 50... f5 {[%clk 0:00:18.9]} 51. Qxf5 {[%clk
0:00:04.3]} 51... Qxg2 {[%clk 0:00:19.2]} 52. Qe6+ {[%clk 0:00:04.5]} 52... Kf8
{[%clk 0:00:13.2]} 53. Qxd6+ {[%clk 0:00:04.4]} 53... Kg7 {[%clk 0:00:13.1]} 54.
Qe7+ {[%clk 0:00:04.1]} 54... Kh8 {[%clk 0:00:13.2]} 55. Qf8+ {[%clk 0:00:03.9]}
55... Qg8 {[%clk 0:00:12.1]} 56. Qxg8+ {[%clk 0:00:04]} 56... Kxg8 {[%clk
0:00:13]} 57. Kg4 {[%clk 0:00:04.4]} 57... Kf7 {[%clk 0:00:11.7]} 58. Kf5 {[%clk
0:00:04.5]} 58... Ke7 {[%clk 0:00:12.3]} 59. h5 {[%clk 0:00:04.5]} 59... Kd6
{[%clk 0:00:12.7]} 60. Ke4 {[%clk 0:00:04.3]} 60... Bh6 {[%clk 0:00:11.7]} 61.
Kd3 {[%clk 0:00:03.4]} 61... Kxd5 {[%clk 0:00:12.1]} 0-1

[Event "*** Titled Tuesday Blitz"]
[Site "Chess.com"]
[Date "2021.03.09"]
[Round "2"]
[White "MergenKakabaev"]
[Black "thisunaa"]
[Result "0-1"]
[WhiteElo "2362"]
[BlackElo "2002"]
[TimeControl "180+1"]
[EndTime "10:20:14 PST"]
[Termination "thisunaa won on time"]

1. e4 {[%clk 0:03:00.5]} 1... c5 {[%clk 0:02:59.2]} 2. Nf3 {[%clk 0:02:59.8]}
2... d6 {[%clk 0:02:59.1]} 3. d4 {[%clk 0:02:59.7]} 3... cxd4 {[%clk 0:02:57.3]}
4. Nxd4 {[%clk 0:03:00.4]} 4... Nf6 {[%clk 0:02:57.5]} 5. Nc3 {[%clk 0:02:59.9]}
5... a6 {[%clk 0:02:49]} 6. Bg5 {[%clk 0:02:59.1]} 6... e6 {[%clk 0:02:48.7]} 7.
f4 {[%clk 0:02:57.9]} 7... Be7 {[%clk 0:02:48.6]} 8. Qf3 {[%clk 0:02:56.4]} 8...
Qc7 {[%clk 0:02:41.3]} 9. O-O-O {[%clk 0:02:52.9]} 9... Nbd7 {[%clk 0:02:27.7]}
10. g4 {[%clk 0:02:51.7]} 10... h6 {[%clk 0:02:11.2]} 11. Bxf6 {[%clk
0:02:50.5]} 11... Bxf6 {[%clk 0:02:07.2]} 12. h4 {[%clk 0:02:49.2]} 12... Nc5
{[%clk 0:01:50.2]} 13. g5 {[%clk 0:02:46.4]} 13... Be7 {[%clk 0:01:45.1]} 14. f5
{[%clk 0:02:45.3]} 14... hxg5 {[%clk 0:01:31.7]} 15. hxg5 {[%clk 0:02:46.2]}
15... Bxg5+ {[%clk 0:01:31.5]} 16. Kb1 {[%clk 0:02:45.6]} 16... Rxh1 {[%clk
0:01:24.3]} 17. Qxh1 {[%clk 0:02:46.1]} 17... Bh6 {[%clk 0:01:24.3]} 18. f6
{[%clk 0:02:30.3]} 18... e5 {[%clk 0:01:17.9]} 19. Nd5 {[%clk 0:02:27.9]} 19...
Qd8 {[%clk 0:01:10.3]} 20. Nf5 {[%clk 0:02:25.3]} 20... Bxf5 {[%clk 0:01:08.4]}
21. exf5 {[%clk 0:02:26]} 21... Nd7 {[%clk 0:01:01.1]} 22. fxg7 {[%clk
0:02:25.3]} 22... Bxg7 {[%clk 0:01:01]} 23. Qh7 {[%clk 0:02:24.2]} 23... Kf8
{[%clk 0:01:00.9]} 24. Bc4 {[%clk 0:02:05.8]} 24... Nf6 {[%clk 0:00:57.5]} 25.
Qh3 {[%clk 0:02:00.6]} 25... Nxd5 {[%clk 0:00:55.6]} 26. Bxd5 {[%clk 0:02:01.5]}
26... Qf6 {[%clk 0:00:52.3]} 27. c3 {[%clk 0:01:52.8]} 27... Rb8 {[%clk
0:00:48.6]} 28. Qf3 {[%clk 0:01:43.7]} 28... b5 {[%clk 0:00:39.1]} 29. Rc1
{[%clk 0:01:36.4]} 29... Bh6 {[%clk 0:00:38.4]} 30. Rh1 {[%clk 0:01:32.3]} 30...
Bg7 {[%clk 0:00:37.5]} 31. Qe4 {[%clk 0:01:29.8]} 31... Rc8 {[%clk 0:00:31.8]}
32. a3 {[%clk 0:01:24.7]} 32... Rc5 {[%clk 0:00:31.7]} 33. Ka2 {[%clk
0:01:23.6]} 33... a5 {[%clk 0:00:31.3]} 34. Bb3 {[%clk 0:01:21.9]} 34... d5
{[%clk 0:00:30.1]} 35. Bxd5 {[%clk 0:01:20.8]} 35... Qd6 {[%clk 0:00:29.1]} 36.
Rd1 {[%clk 0:01:17.2]} 36... a4 {[%clk 0:00:19.2]} 37. Ka1 {[%clk 0:01:15]}
37... Qc7 {[%clk 0:00:19]} 38. Kb1 {[%clk 0:01:12.4]} 38... Qd6 {[%clk
0:00:18.5]} 39. Bb3 {[%clk 0:01:09.8]} 39... Qc6 {[%clk 0:00:17.5]} 40. Bd5
{[%clk 0:01:07.1]} 40... Qd6 {[%clk 0:00:17.3]} 41. Rd3 {[%clk 0:01:07.4]} 41...
Qb6 {[%clk 0:00:16.9]} 42. Ka2 {[%clk 0:01:06.2]} 42... Qd6 {[%clk 0:00:16.8]}
43. Bc4 {[%clk 0:01:03.1]} 43... Qc7 {[%clk 0:00:17]} 44. Bd5 {[%clk 0:01:01.3]}
44... Bf6 {[%clk 0:00:16.8]} 45. Rh3 {[%clk 0:00:57.9]} 45... Ke7 {[%clk
0:00:17]} 46. Rh7 {[%clk 0:00:57.2]} 46... Rxd5 {[%clk 0:00:12]} 47. Qxd5 {[%clk
0:00:56.3]} 47... Qc4+ {[%clk 0:00:12.9]} 48. Qxc4 {[%clk 0:00:54.7]} 48... bxc4
{[%clk 0:00:13.8]} 49. Kb1 {[%clk 0:00:47.3]} 49... e4 {[%clk 0:00:12.6]} 50.
Kc2 {[%clk 0:00:45.8]} 50... e3 {[%clk 0:00:10.1]} 51. Kd1 {[%clk 0:00:00.6]}
51... Bg5 {[%clk 0:00:10]} 0-1

[Event "*** Titled Tuesday Blitz"]
[Site "Chess.com"]
[Date "2021.03.09"]
[Round "2"]
[White "FMLorneTwitch"]
[Black "Mazetovic"]
[Result "0-1"]
[WhiteElo "2340"]
[BlackElo "2666"]
[TimeControl "180+1"]
[EndTime "10:20:15 PST"]
[Termination "Mazetovic won by resignation"]

1. d4 {[%clk 0:03:00.9]} 1... Nf6 {[%clk 0:02:58.9]} 2. Bg5 {[%clk 0:03:00.5]}
2... d5 {[%clk 0:02:51.7]} 3. Bxf6 {[%clk 0:02:58]} 3... gxf6 {[%clk 0:02:50.1]}
4. c4 {[%clk 0:02:57.1]} 4... dxc4 {[%clk 0:02:35.2]} 5. Nc3 {[%clk 0:02:53.6]}
5... e6 {[%clk 0:02:30.6]} 6. e3 {[%clk 0:02:52.2]} 6... a6 {[%clk 0:02:30.5]}
7. a4 {[%clk 0:02:51.5]} 7... Nc6 {[%clk 0:02:29.2]} 8. Bxc4 {[%clk 0:02:51.8]}
8... Nb4 {[%clk 0:02:29.3]} 9. Nge2 {[%clk 0:02:46.3]} 9... Rg8 {[%clk 0:02:29]}
10. Ng3 {[%clk 0:02:40.1]} 10... b6 {[%clk 0:02:25]} 11. O-O {[%clk 0:02:18.3]}
11... Bb7 {[%clk 0:02:25.1]} 12. e4 {[%clk 0:02:18.6]} 12... Bd6 {[%clk
0:02:16.4]} 13. Qh5 {[%clk 0:02:05.1]} 13... Rg7 {[%clk 0:02:13.7]} 14. Bxe6
{[%clk 0:01:56.5]} 14... Bxg3 {[%clk 0:02:05.5]} 15. hxg3 {[%clk 0:01:54.3]}
15... Qxd4 {[%clk 0:02:03.7]} 16. Rad1 {[%clk 0:01:44.8]} 16... Qe5 {[%clk
0:02:02.7]} 17. Bd7+ {[%clk 0:01:37.9]} 17... Ke7 {[%clk 0:02:00.6]} 18. Bf5
{[%clk 0:01:36.7]} 18... Bc6 {[%clk 0:01:38.2]} 19. Qh6 {[%clk 0:01:28.5]} 19...
Rag8 {[%clk 0:01:37.9]} 20. Qe3 {[%clk 0:01:21.2]} 20... h5 {[%clk 0:01:30.3]}
21. Rfe1 {[%clk 0:01:18.1]} 21... h4 {[%clk 0:01:29.2]} 22. g4 {[%clk
0:01:13.3]} 22... Rd8 {[%clk 0:01:22.7]} 23. Rxd8 {[%clk 0:01:12.1]} 23... Kxd8
{[%clk 0:01:23.6]} 24. Rd1+ {[%clk 0:01:08.6]} 24... Ke7 {[%clk 0:01:23.7]} 25.
Qh6 {[%clk 0:00:59.4]} 25... Rg8 {[%clk 0:01:16.1]} 26. Qxh4 {[%clk 0:00:57.7]}
26... Nc2 {[%clk 0:01:09.7]} 27. Qh7 {[%clk 0:00:47.9]} 27... Rf8 {[%clk
0:01:08.3]} 28. Qg7 {[%clk 0:00:42.3]} 28... Nd4 {[%clk 0:00:57.6]} 29. g5
{[%clk 0:00:32.6]} 29... Ne6 {[%clk 0:00:35.3]} 30. gxf6+ {[%clk 0:00:21.3]}
30... Qxf6 {[%clk 0:00:34.9]} 31. Qg3 {[%clk 0:00:21.5]} 31... Qg7 {[%clk
0:00:29.2]} 32. Qe3 {[%clk 0:00:14]} 32... Rd8 {[%clk 0:00:26.2]} 33. Nd5+
{[%clk 0:00:10.9]} 33... Kf8 {[%clk 0:00:20.3]} 34. Re1 {[%clk 0:00:08.4]} 34...
Nc5 {[%clk 0:00:15.3]} 35. b3 {[%clk 0:00:05.1]} 35... Bxd5 {[%clk 0:00:14.4]}
36. exd5 {[%clk 0:00:05.4]} 36... Qf6 {[%clk 0:00:14.4]} 37. Be4 {[%clk
0:00:04.8]} 37... Re8 {[%clk 0:00:14.1]} 38. f3 {[%clk 0:00:05.2]} 38... Re5
{[%clk 0:00:11.4]} 39. Rd1 {[%clk 0:00:04.4]} 39... Qd6 {[%clk 0:00:10.8]} 40.
Qc3 {[%clk 0:00:03.6]} 40... Rg5 {[%clk 0:00:08.8]} 41. Kf1 {[%clk 0:00:03]}
41... Qh6 {[%clk 0:00:07.5]} 42. Kf2 {[%clk 0:00:02.7]} 42... Qh4+ {[%clk
0:00:07.3]} 43. Ke3 {[%clk 0:00:02.9]} 43... Rxg2 {[%clk 0:00:06.9]} 44. Qe5
{[%clk 0:00:02.2]} 44... Qh6+ {[%clk 0:00:06.5]} 45. Kd4 {[%clk 0:00:02.2]}
45... Rd2+ {[%clk 0:00:06.1]} 46. Rxd2 {[%clk 0:00:01.7]} 46... Qxd2+ {[%clk
0:00:06.1]} 47. Kc4 {[%clk 0:00:02.6]} 47... Qe2+ {[%clk 0:00:04.8]} 48. Kd4
{[%clk 0:00:02.6]} 48... Qb2+ {[%clk 0:00:05]} 49. Kc4 {[%clk 0:00:02.9]} 49...
Qxe5 {[%clk 0:00:05.9]} 50. a5 {[%clk 0:00:02.7]} 50... Qd6 {[%clk 0:00:05.6]}
51. axb6 {[%clk 0:00:03.6]} 51... cxb6 {[%clk 0:00:06]} 52. b4 {[%clk
0:00:04.1]} 52... b5+ {[%clk 0:00:06.9]} 53. Kc3 {[%clk 0:00:04.2]} 53... Nxe4+
{[%clk 0:00:07.4]} 54. Kd4 {[%clk 0:00:04.5]} 54... Qe5+ {[%clk 0:00:08.3]} 55.
Kxe5 {[%clk 0:00:04]} 55... Nd2 {[%clk 0:00:07.3]} 56. d6 {[%clk 0:00:03.6]}
56... Ke8 {[%clk 0:00:07.2]} 57. Kd5 {[%clk 0:00:04]} 57... Kd7 {[%clk
0:00:07.1]} 58. Kc5 {[%clk 0:00:04.9]} 58... Nc4 {[%clk 0:00:06.2]} 59. f4
{[%clk 0:00:04.7]} 59... Nxd6 {[%clk 0:00:06.2]} 60. Kb6 {[%clk 0:00:05.6]}
60... Nc4+ {[%clk 0:00:06.2]} 61. Kxa6 {[%clk 0:00:06.5]} 61... Kc6 {[%clk
0:00:06.6]} 62. f5 {[%clk 0:00:06.1]} 62... f6 {[%clk 0:00:06.2]} 63. Ka7 {[%clk
0:00:06.3]} 63... Ne3 {[%clk 0:00:06.5]} 64. Ka6 {[%clk 0:00:07.2]} 64... Nxf5
{[%clk 0:00:07.1]} 65. Ka5 {[%clk 0:00:07.6]} 65... Nd6 {[%clk 0:00:07.2]} 66.
Ka6 {[%clk 0:00:08.5]} 66... f5 {[%clk 0:00:07.7]} 0-1

[Event "*** Titled Tuesday Blitz"]
[Site "Chess.com"]
[Date "2021.03.09"]
[Round "2"]
[White "bsnsun"]
[Black "ApoIogiA"]
[Result "1-0"]
[WhiteElo "2450"]
[BlackElo "2210"]
[TimeControl "180+1"]
[EndTime "10:20:16 PST"]
[Termination "bsnsun won by resignation"]

1. Nf3 {[%clk 0:03:00.9]} 1... Nf6 {[%clk 0:02:59.7]} 2. c4 {[%clk 0:03:00.8]}
2... g6 {[%clk 0:02:58.3]} 3. g3 {[%clk 0:03:01.1]} 3... Bg7 {[%clk 0:02:58.6]}
4. Bg2 {[%clk 0:03:01.8]} 4... O-O {[%clk 0:02:59.1]} 5. d4 {[%clk 0:03:02.5]}
5... d5 {[%clk 0:02:59.5]} 6. O-O {[%clk 0:03:02.6]} 6... dxc4 {[%clk
0:02:59.2]} 7. Na3 {[%clk 0:03:01.6]} 7... c3 {[%clk 0:02:56.1]} 8. bxc3 {[%clk
0:03:01.7]} 8... c5 {[%clk 0:02:57]} 9. e3 {[%clk 0:02:59.9]} 9... Nc6 {[%clk
0:02:54.7]} 10. Nc4 {[%clk 0:02:59.3]} 10... Be6 {[%clk 0:02:39.5]} 11. Nce5
{[%clk 0:02:42.7]} 11... Bd5 {[%clk 0:02:32.6]} 12. Qe2 {[%clk 0:02:38.3]} 12...
Nxe5 {[%clk 0:02:15.6]} 13. Nxe5 {[%clk 0:02:36.2]} 13... Bxg2 {[%clk
0:02:16.5]} 14. Kxg2 {[%clk 0:02:36.5]} 14... Ne4 {[%clk 0:02:01.3]} 15. Bb2
{[%clk 0:02:33.3]} 15... Bxe5 {[%clk 0:01:29.1]} 16. dxe5 {[%clk 0:02:31.4]}
16... Qd5 {[%clk 0:01:12.1]} 17. c4 {[%clk 0:02:18.5]} 17... Qc6 {[%clk
0:01:12]} 18. Qf3 {[%clk 0:02:11.8]} 18... e6 {[%clk 0:01:06.2]} 19. Rfd1 {[%clk
0:02:11.7]} 19... Rfd8 {[%clk 0:01:06.5]} 20. h4 {[%clk 0:02:07.9]} 20... h5
{[%clk 0:01:05.5]} 21. Kg1 {[%clk 0:02:04.4]} 21... Rac8 {[%clk 0:00:58.5]} 22.
Rac1 {[%clk 0:02:02.5]} 22... b6 {[%clk 0:00:57.3]} 23. Ba1 {[%clk 0:02:00.8]}
23... Rd2 {[%clk 0:00:46.1]} 24. Rxd2 {[%clk 0:01:47.2]} 24... Nxd2 {[%clk
0:00:45.2]} 25. Qxc6 {[%clk 0:01:45.5]} 25... Rxc6 {[%clk 0:00:46.1]} 26. Kg2
{[%clk 0:01:39.3]} 26... Rc8 {[%clk 0:00:41.2]} 27. Rc2 {[%clk 0:01:39.1]} 27...
Rd8 {[%clk 0:00:31.8]} 28. f3 {[%clk 0:01:38.8]} 28... Nb1 {[%clk 0:00:19.9]}
29. Kf1 {[%clk 0:01:31.8]} 29... Rd1+ {[%clk 0:00:18.7]} 30. Ke2 {[%clk
0:01:30.4]} 30... Rg1 {[%clk 0:00:18]} 31. Bb2 {[%clk 0:01:24.5]} 31... Rg2+
{[%clk 0:00:15.9]} 32. Kd3 {[%clk 0:01:23.3]} 32... Rg1 {[%clk 0:00:14.9]} 33.
Rc1 {[%clk 0:01:20.9]} 33... Rxg3 {[%clk 0:00:05.3]} 34. Rxb1 {[%clk 0:01:21]}
34... Rxf3 {[%clk 0:00:06.2]} 35. Rh1 {[%clk 0:01:17]} 35... Kg7 {[%clk
0:00:05]} 36. Bc3 {[%clk 0:01:16.8]} 36... Rf2 {[%clk 0:00:05.1]} 37. a4 {[%clk
0:01:16.5]} 37... Ra2 {[%clk 0:00:05]} 38. Ra1 {[%clk 0:01:16.7]} 38... Rh2
{[%clk 0:00:04.4]} 39. Be1 {[%clk 0:01:17.2]} 39... Rh1 {[%clk 0:00:04.1]} 40.
a5 {[%clk 0:01:16.6]} 40... bxa5 {[%clk 0:00:04.1]} 41. Ke2 {[%clk 0:01:16.2]}
41... Rh2+ {[%clk 0:00:03.6]} 42. Bf2 {[%clk 0:01:15.5]} 42... a4 {[%clk
0:00:02.3]} 43. Rxa4 {[%clk 0:01:15.6]} 43... Rg2 {[%clk 0:00:02.9]} 44. Rxa7
{[%clk 0:01:15.1]} 44... g5 {[%clk 0:00:03.8]} 45. hxg5 {[%clk 0:01:12.6]} 45...
Kg6 {[%clk 0:00:04.2]} 46. Rc7 {[%clk 0:01:11.5]} 46... Rh2 {[%clk 0:00:04.5]}
47. Rxc5 {[%clk 0:01:10.5]} 47... Rh1 {[%clk 0:00:05.4]} 48. Ra5 {[%clk
0:01:09.4]} 48... h4 {[%clk 0:00:05.9]} 49. Kf3 {[%clk 0:01:09.2]} 49... h3
{[%clk 0:00:06.8]} 50. Kg3 {[%clk 0:01:07.4]} 50... h2 {[%clk 0:00:06.7]} 51.
Kg2 {[%clk 0:01:07.2]} 51... Rd1 {[%clk 0:00:05.9]} 52. Kxh2 {[%clk 0:01:07.3]}
52... Rd3 {[%clk 0:00:05.8]} 53. Kg2 {[%clk 0:01:07.3]} 53... Rc3 {[%clk
0:00:06.7]} 54. c5 {[%clk 0:01:07.6]} 54... Rc4 {[%clk 0:00:06.8]} 55. Rb5
{[%clk 0:01:08]} 55... Kxg5 {[%clk 0:00:07.1]} 56. e4 {[%clk 0:01:07.6]} 56...
Rxe4 {[%clk 0:00:06.4]} 57. Rb1 {[%clk 0:01:05.4]} 57... Rc4 {[%clk 0:00:06.6]}
58. Rb6 {[%clk 0:01:05.1]} 58... Kf5 {[%clk 0:00:06.9]} 59. Rb7 {[%clk
0:01:04.8]} 59... f6 {[%clk 0:00:07]} 60. exf6 {[%clk 0:01:03]} 60... Kxf6
{[%clk 0:00:07.9]} 61. Rc7 {[%clk 0:01:03.1]} 61... Ke5 {[%clk 0:00:08.8]} 62.
c6 {[%clk 0:01:01.8]} 62... Kd6 {[%clk 0:00:08.7]} 63. Bg3+ {[%clk 0:01:01.9]}
63... Kd5 {[%clk 0:00:07.4]} 64. Rd7+ {[%clk 0:00:50.5]} 64... Kxc6 {[%clk
0:00:07.3]} 65. Rd6+ {[%clk 0:00:51.1]} 65... Kc5 {[%clk 0:00:07]} 66. Rxe6
{[%clk 0:00:52]} 66... Rc2+ {[%clk 0:00:07.6]} 67. Kf3 {[%clk 0:00:52.2]} 67...
Rc3+ {[%clk 0:00:08]} 68. Kf4 {[%clk 0:00:51.9]} 68... Rc4+ {[%clk 0:00:08.4]}
69. Ke5 {[%clk 0:00:51.3]} 69... Rc1 {[%clk 0:00:08.5]} 70. Bf2+ {[%clk
0:00:50]} 70... Kb5 {[%clk 0:00:08.2]} 71. Rb6+ {[%clk 0:00:49.9]} 71... Ka4
{[%clk 0:00:07.6]} 72. Rb8 {[%clk 0:00:49.8]} 72... Rd1 {[%clk 0:00:07.2]} 73.
Bd4 {[%clk 0:00:49.6]} 73... Ka5 {[%clk 0:00:07.1]} 74. Kd5 {[%clk 0:00:49.5]}
74... Ka4 {[%clk 0:00:07.8]} 75. Kc4 {[%clk 0:00:48.2]} 75... Rc1+ {[%clk
0:00:06.2]} 76. Bc3 {[%clk 0:00:48.4]} 76... Rxc3+ {[%clk 0:00:01.4]} 77. Kxc3
{[%clk 0:00:48]} 1-0